Cogmind - Beta 17.1 @@@ ROGUE MODE // 2026.09.12 @ 13:13:26 Player: Reflectatory Result: Destroyed by D-53 Grenadier with Mini Grenade Launcher Performance ------------- Evolutions (0) 0 Regions Visited (2) 400 Robots Destroyed (19) 95 Value Destroyed (407) 407 Prototype IDs (4) 80 Alien Tech Used (0) 0 Bonus (0) 0 TOTAL SCORE: 982 Bonus ------- None Cogmind --------- Core Integrity 0/250 Matter 28/300 Energy 100/100 System Corruption 0% Temperature Cool (0) Movement Core (200) Ox3 Location -10/Mines Parts ------- > --- POWER (1) -------- (None) > --- PROPULSION (2) --- (None) > --- UTILITY (2) ------ Medium Storage Unit > --- WEAPON (2) ------- (None) > --- INVENTORY (10) --- Ion Engine Light Treads Light Treads Medium Storage Unit Grenade Launcher Rocket Launcher Rocket Launcher Rocket Launcher Peak State ------------ > --- POWER ------------ Ion Engine > --- PROPULSION ------- Compact Wheel Compact Wheel > --- UTILITY ---------- Medium Storage Unit Medium Storage Unit > --- WEAPON ----------- Rocket Launcher Rocket Launcher > --- INVENTORY -------- Ion Engine Light Treads Light Treads Small Storage Unit Assault Rifle Grenade Launcher Rocket Launcher Rocket Launcher [Rating: 10] Favorites ----------- Power Ion Engine Engine Ion Engine Propulsion Compact Wheel Wheel Compact Wheel Utility Medium Storage Unit Storage Medium Storage Unit Protection Core Shielding Weapon Rocket Launcher Energy Gun EM Pulse Gun Ballistic Gun Assault Rifle Launcher Rocket Launcher Build | -11 -10 -10 ------- Run | Yrd Mat Min Slots Evolved . | . . . Power . | . . . Propulsion . | . . . Utility . | . . . Weapon . | . . . Parts Attached 18 | 6 10 2 Power 2 | 1 1 . Engine 2 | 1 1 . Core . | . . . Reactor . | . . . Propulsion 2 | 2 . . Treads . | . . . Leg . | . . . Wheel 2 | 2 . . Hover . | . . . Flight . | . . . Utility 5 | . 5 . Device . | . . . Storage 3 | . 3 . Processor . | . . . Hackware . | . . . Protection 2 | . 2 . Artifact . | . . . Weapon 9 | 3 4 2 Energy Gun 3 | 3 . . Energy Cannon . | . . . Ballistic Gun 2 | . 2 . Ballistic Cannon . | . . . Launcher 4 | . 2 2 Special Weapon . | . . . Impact Weapon . | . . . Slashing Weapon . | . . . Piercing Weapon . | . . . Special Melee Weapon . | . . . Unidentified Prototypes . | . . . Parts Lost 8 | . . 8 Power 1 | . . 1 Propulsion 2 | . . 2 Utility 1 | . . 1 Weapon 4 | . . 4 Highest Loss Streak 8 | . . 8 To Critical Strikes . | . . . Average Backups 8 | 1 8 9 Power . | . 1 1 Propulsion 1 | . 2 2 Utility . | . . 1 Weapon 4 | . 5 5 Tool/Special . | . . . Unused Backups 8 | . 1 7 Power 1 | . . 1 Propulsion 2 | . . 2 Utility . | . . . Weapon 5 | . 1 4 Tool/Special . | . . . Average Slot Usage (%) 94 | . 94 95 Engine 13 | . 14 12 Wheel 27 | . 28 26 Storage 12 | . 12 14 Protection 10 | . 9 14 Energy Gun 2 | . 2 . Ballistic Gun 1 | . 1 . Launcher 23 | . 23 28 Peak Build Rating 10 | 5 10 10 Average Rating 8 | 3 9 9 On Entrance 5 | . 5 10 Avg Prop Armor Cover (%) . | . . . Naked Turns . | . . . Heaviest Build 33 | 9 33 24 Greatest Support 32 | 32 32 32 Greatest Overweight (x) 3 | . 1 3 Average Overweight (x) . | . . . Largest Inventory Capacity 10 | 5 10 10 Average Capacity 8 | 5 9 10 Most Carried 10 | 4 10 10 Average Carried 8 | 1 8 9 Final Capacity 10 | 5 10 10 Final Carried 10 | 4 10 8 Class Distribution -------------------- 100% | Mutant Dominant Class ---------------- Mutant | -10/Materials Mutant | -10/Mines Resources | -11 -10 -10 ----------- Run | Yrd Mat Min Matter Collected 397 | 198 190 9 Remotely . | . . . Salvage Created 277 | . 228 49 Parts 29 | . 23 6 Haulers Intercepted 2 | . 2 . Recyclers Shooed . | . . . Parts Field Recycled . | . . . Retrieved Matter . | . . . Parts Self-Destructed . | . . . Prevented . | . . . Parts Restored . | . . . Kills | -11 -10 -10 ------- Run | Yrd Mat Min Combat Hostiles Destroyed 10 | . 8 2 AOE 10 | . 8 2 Classes Destroyed 7 | . 7 . Builder 2 | . 2 . Tunneler 2 | . 2 . Hauler 2 | . 2 . Operator 1 | . 1 . Watcher 2 | . 2 . Swarmer 3 | . 3 . Grunt 7 | . 5 2 Best Kill Streak 12 | . 12 2 Combat Bots Only 6 | . 6 2 Max Kills in Single Turn 3 | . 3 1 Gunslinging . | . . . Exploded 2 | . 2 1 Melee . | . . . Uniques/NPCs Destroyed . | . . . Combat | -11 -10 -10 -------- Run | Yrd Mat Min Hostile Shots Fired 21 | . 3 18 Missed 3 | . 1 2 Hits 18 | . 2 16 Projectile 18 | . 2 16 AOE 16 | . . 16 Damage Taken 789 | . 78 711 Core 263 | . 18 245 Absorbed by Shields . | . . . Redirected to Shielding 44 | . . 44 Core Remaining (%) 100 | 100 . . Volleys Fired 16 | . 10 6 Largest 2 | . 2 2 Hottest 66 | . 66 66 Shots Fired 30 | . 20 10 Gun . | . . . Cannon . | . . . Launcher 30 | . 20 10 Special . | . . . Kinetic . | . . . Thermal . | . . . Explosive 30 | . 20 10 Electromagnetic . | . . . Robot Hit Streak 3 | . 2 3 Robot Miss Streak 2 | . 2 2 Penetration Max . | . . . Secondary Targets . | . . . Shots Hit Robots 9 | . 4 5 Core Hits 45 | . 36 9 Critical Kills . | . . . Critical Parts Destroyed . | . . . Critical Strikes . | . . . Melee Attacks . | . . . Impact . | . . . Slashing . | . . . Piercing . | . . . Sneak Attacks . | . . . Combat Hostiles . | . . . Follow-up Attacks . | . . . Damage Inflicted 1277 | . 1062 215 Guns . | . . . Cannons . | . . . Explosions 1277 | . 1062 215 Melee . | . . . Ramming . | . . . Kinetic . | . . . Thermal 76 | . 76 . Explosive 1140 | . 925 215 Electromagnetic 61 | . 61 . Impact . | . . . Slashing . | . . . Piercing . | . . . Highest Corruption . | . . . Average Corruption . | . . . Corruption Purged . | . . . Corruption Blocked . | . . . Overload Shots . | . . . Overflow Damage . | . . . Projectiles . | . . . Explosions . | . . . Melee . | . . . Knockbacks . | . . . Impact . | . . . Kinetic . | . . . Secondary . | . . . Self-Inflicted Damage 107 | . 60 47 Shots 3 | . 2 1 Rammed . | . . . Targets Rammed . | . . . Kicked . | . . . Crushed . | . . . Highest Temperature 24 | . 12 24 Average Temperature 6 | . 5 9 Received Heat Transfer 12 | . . 12 Siege Activations . | . . . Martial Activations . | . . . Shielding Activations . | . . . Robots Disrupted 1 | . 1 . Combat Hostiles . | . . . Robots Corrupted . | . . . Combat Hostiles . | . . . Parts Fried . | . . . Impact Corruptions . | . . . Robots Melted . | . . . Combat Hostiles . | . . . Parts Melted . | . . . Heat Transferred 50 | . 50 . Parts Sabotaged . | . . . Parts Stolen . | . . . Parts Stripped . | . . . Power Chain Reactions . | . . . Alert | -11 -10 -10 ------- Run | Yrd Mat Min Maximum Alert Level 1 | . 1 . Low Security (%) 44 | 100 34 100 Level 1 55 | . 65 . Level 2 . | . . . Level 3 . | . . . Level 4 . | . . . Level 5 . | . . . High Security . | . . . Max Security . | . . . Peak Influence 348 | . 348 152 Initial 83 | . . 83 Average 169 | . 189 120 Influence Increases 556 | . 446 110 Destroy 0b10 Robot/C 200 | . 160 40 Destroy 0b10 Robot/NC 45 | . 45 . Destroy Leader 38 | . 28 10 Successful Hack 28 | . 28 . Disable Machine 75 | . 75 . Destroy Structure 170 | . 110 60 Influence Decreases 473 | . 231 242 Entered New Map 132 | . . 132 Time Decay 261 | . 231 30 Lost Part 80 | . . 80 Squads Dispatched 1 | . 1 . Investigation . | . . . Extermination . | . . . Reinforcement 1 | . 1 . Assault . | . . . Garrison . | . . . Intercept . | . . . Searches Triggered . | . . . Construction Impeded . | . . . Haulers Reinforced . | . . . Active Scanning Responses . | . . . Cargo Convoy Interrupts . | . . . Stealth | -11 -10 -10 --------- Run | Yrd Mat Min Distress Signals 1 | . 1 . Communications Jammed . | . . . Distress Signals . | . . . Times Spotted 12 | . 8 4 Peak Tracking Total 3 | . 3 2 Tactical Retreats . | . . . Traps | -11 -10 -10 ------- Run | Yrd Mat Min Traps Triggered . | . . . Indirectly . | . . . Trap Hack Attempts . | . . . Triggered . | . . . Disarmed . | . . . Reprogrammed . | . . . Reused . | . . . Traps Extracted . | . . . Installed . | . . . Triggered . | . . . Machines | -11 -10 -10 ---------- Run | Yrd Mat Min Machines Disabled 5 | . 5 . Max in Single Turn 2 | . 2 . Machines Repaired . | . . . Machines Dismantled . | . . . Machines Sabotaged . | . . . Overloaded Fab Kills . | . . . Hacking | -11 -10 -10 --------- Run | Yrd Mat Min Machines Accessed 7 | . 7 . Terminals 5 | . 5 . Fabricators . | . . . Repair Stations . | . . . Recycling Units 2 | . 2 . Scanalyzers . | . . . Garrison Access . | . . . Total Hacks 19 | . 19 . Successful 10 | . 10 . Failed 9 | . 9 . Catastrophic . | . . . Database Lockouts . | . . . Manual 11 | . 11 . Terminals 13 | . 13 . Fabricators . | . . . Repair Stations . | . . . Recycling Units 6 | . 6 . Scanalyzers . | . . . Garrison Access . | . . . Terminal Hacks 3 | . 3 . Prototype ID Bank 2 | . 2 . Hauler Manifests 1 | . 1 . Fabricator Hacks . | . . . Repair Station Hacks . | . . . Recycling Unit Hacks 3 | . 3 . Retrieve Matter 3 | . 3 . Scanalyzer . | . . . Garrison Access Hacks . | . . . Unauthorized Hacks 4 | . 4 . Terminals 4 | . 4 . Botnet 4 | . 4 . Fabricators . | . . . Repair Stations . | . . . Recycling Units . | . . . Scanalyzers . | . . . Garrison Access . | . . . Data Cores Recovered . | . . . Used . | . . . Hacking Detections 6 | . 6 . Full Trace Events 1 | . 1 . Feedback Events . | . . . Feedback Blocked . | . . . Robot Schematics Acquired . | . . . Robots Built . | . . . Authchips . | . . . Time . | . . . Total Robot Build Rating . | . . . Part Schematics Acquired . | . . . Parts Built . | . . . Authchips . | . . . Time . | . . . Total Part Build Rating . | . . . Part Studies Acquired . | . . . Parts Repaired . | . . . Time . | . . . Parts Recycled . | . . . Recycled Matter . | . . . Retrieved Matter 21 | . 21 . Retrieved Components . | . . . Parts Scanalyzed . | . . . Part Schematics Acquired . | . . . Parts Damaged . | . . . Bothacking | -11 -10 -10 ------------ Run | Yrd Mat Min Used RIF Installer . | . . . Robots Hacked . | . . . Non-combat . | . . . Combat . | . . . Robot Hacks Applied . | . . . Relay Couplers Released . | . . . Fabnet Peak Effective % . | . . . Robots Rewired . | . . . Allies Hacked . | . . . Hacks Repelled . | . . . Allies | -11 -10 -10 -------- Run | Yrd Mat Min Total Allies . | . . . Largest Group . | . . . Highest-Rated Group . | . . . Highest-Rated Ally . | . . . Total Orders . | . . . Ally Attacks . | . . . Total Damage . | . . . Kills . | . . . Allies Corrupted . | . . . Allies Melted . | . . . Intel | -11 -10 -10 ------- Run | Yrd Mat Min Active Infowar (turns) . | . . . Robot Analysis Total . | . . . Derelict Logs Recovered . | . . . Drone Launches . | . . . Drone Recoveries . | . . . Exploration | -11 -10 -10 ------------- Run | Yrd Mat Min Turns Passed 723 | 54 608 61 Spaces Moved 488 | 42 404 42 Core 4 | 3 . 1 Treads . | . . . Legs . | . . . Wheels 484 | 39 404 41 Hover . | . . . Flight . | . . . Fastest Speed 50 | 50 100 100 Average Speed 100 | 96 100 102 Slowest Speed 200 | 100 115 200 Overloaded Moves . | . . . Propulsion Burnouts . | . . . Robots Hopped . | . . . Potential Cave-ins . | . . . Cave-ins Triggered . | . . . Exploration Rate (%) 34 | 4 79 19 Regions Visited 2 Branch Regions 1 Pre-discovered Areas . | . . . Known Exits Taken . | . . . Unknown Exits Taken 2 | 1 1 . Scrap Searched . | . . . Spaces Dug . | . . . Terrain Destroyed 188 | . 116 72 Melee . | . . . Projectile . | . . . AOE 188 | . 116 72 Terrain Rammed . | . . . Walls Destroyed . | . . . Machines Disabled . | . . . Actions | -11 -10 -10 --------- Run | Yrd Mat Min Total 686 | 52 584 50 Wait 142 | . 142 . Move 486 | 41 403 42 Hop . | . . . Pick Up 14 | 4 10 . Fast Attach 9 | 5 4 . Attach 2 | . . 2 Detach . | . . . Swap 9 | 2 7 . Drop 8 | . 8 . Fire 16 | . 10 6 Melee . | . . . Ram . | . . . Kick . | . . . Crush . | . . . Escape Stasis . | . . . Rewire . | . . . Trap . | . . . Miscellaneous . | . . . Route ------- -11/Scrapyard -10/Materials (discovered 3 exits: [*Mat] / [*Min x2]) -10/Mines History --------- Turn | Location | Event 8 | -11/Scrapyard | Discovered new exit (range 15) 55 | -11/Scrapyard | Entered Materials 258 | -10/Materials | Discovered new exit (range 12) 308 | -10/Materials | Build established: Mutant 435 | -10/Materials | Discovered new exit (range 15) 475 | -10/Materials | Discovered new exit (range 16) 663 | -10/Materials | Entered Mines 688 | -10/Mines | Assembled infested the area 716 | -10/Mines | Core integrity fell below 50% 723 | -10/Mines | Core integrity fell below 20% 724 | -10/Mines | Destroyed by D-53 Grenadier with Mini Grenade Launcher Last Messages --------------- K-01 Serf collects debris. C-45 Heavy ARC bursts open, deploying its payload. D-53 Grenadier unfolds itself. K-01 Serf collects debris. Rocket Launcher destroyed. Com. Wheel destroyed. The unstable cave ceiling collapses. Rocket Launcher destroyed. The unstable cave ceiling collapses. Ion Engine destroyed. K-01 Serf collects debris. The unstable cave ceiling collapses. K-01 Serf collects debris. K-01 Serf destroyed. The unstable cave ceiling collapses. Rocket Launcher destroyed. Com. Wheel destroyed. The unstable cave ceiling collapses. Core Shielding destroyed. Map ----- +----------------------------------------------------+ | ??????????????????????????????????????? | | ??????????????????????????????????????? | | ??????????????????????????????????????? | | ??????????????????????????????????????? | | ??????????????????????????????????????? | | ?????????????????????????? ??????????? | | ?????????????????????????? ??????????? | | ?????????????????????????? ??????????? | | ?????????????????????????? ##????????? | | ??????????????????????????? ##??????? | | ??????????????????????????? #?????? | | ?????????????????????????? ????? | | ?????????????????????????## ?? | | ????????????????????????#g ##? | | ???????????????###??????#g ?? | | ??????????????## ??????#g ??? | | ??????????????# ???### #??? | | ??????????????# #### % #??? | | ??????????????# # # d # #??? | | ??????????????## # d ##?? | | ???????????????# # ##? | | ???????????????# #? | | ???????????????# [= #? | | ???????????????# = #?? | | ???????????????# = * ###?? | | ???????????????## @ #??? | | ????????????????## #??? | | ?????????????????### #??? | | ??????????????????### # #??? | | ???????????????#### k # ##??? | | ?????????????# # #???? | | ?????????????## # ######???? | | ??????????????## ## #????????? | | ???????????????##### ## ##????????? | | ???????????????????## # #?????????? | | ????????????????????## # #?????????? | | ?????????????????????# # #?????????? | | ?????????????????????# # #?????????? | | ?????????????????????# #?????????? | | ?????????????????????# ## ###???????? | | ?????????????????????# ?# #???????? | | ???????????????????? ?# #???????? | | ??????????????????? ????### #???????? | | ??????????????????##????#### ###?????? | | ????????????????????????# #?????? | | ????????????????????????# #?????? | | ????????????????????????# #?????? | | ????????????????????????# #?????? | | ????????????????????????#########?????? | | ??????????????????????????????????????? | +----------------------------------------------------+ Best States ------------- Heat Dissipation 25 Energy Generation 10 Energy Capacity 250 Matter Stores 228 Matter Capacity 300 Sight Range 16 Terrain Scan Density 10 Core Shielding 20 Utility Shielding 33 Evasion (%) 40 Item Schematics ----------------- None Robot Schematics ------------------ None Fabricated ------------ Nothing Repaired ---------- Nothing Studied --------- None Alien Tech Used ----------------- None Achievements -------------- None Challenges ------------ None Game ------ Seed FieldthrustRagnarokOptics Manual? 0 Play Time 00:08:40 Cumulative 64.7 hours Start 2026.09.12 @ 13:05:44 End 2026.09.12 @ 13:13:26 Sessions 1 Manual Loads 0 Difficulty Rogue Special Mode None Game No. 79 Rogue 79 Adventurer 0 Explorer 0 Win Type - Total 1 Types 1/0/0/0/0/0/0/0/0/0 Lore% 52 Gallery% 44 Achievement% 38 Wizard Run 0 Options --------- Layout 1 ASCII 0 Keyboard 0 Movement Numpad Keybinds 0 Fullscreen 1 Font 32/SmallcapsGlow Map View 50x35 Zoom Use 0% Tactical HUD 0 Map Filters NONE Filters NONE Steam 1 RUN: 13ebfb17-161b-46f4-9c1b-643acae59b59